bitfinex/quotes_ETHUSD_20250403
["timestamp","ask_amount","ask_price","bid_price","bid_amount"]
[1743643352318,9.84156848,1821.0,1820.9,5.8]
[1743643352527,9.89636123,1821.0,1820.9,5.8]
[1743643353104,4.39409,1820.7,1820.4,0.7939]
[1743643353425,8.78961,1820.4,1820.2,5.16331045]
[1743643353583,4.39445,1820.5,1820.3,5.8]
[1743643353991,8.84386275,1820.5,1820.3,5.8]
[1743643355207,8.78907,1820.5,1820.3,5.8]
[1743643355415,8.84386275,1820.5,1820.3,5.8]
[1743643355617,3.0,1820.6,1820.3,5.8]
[1743643355800,3.0,1820.6,1820.3,6.87442713]
[1743643355995,4.39328,1821.0,1820.5,4.39439]
[1743643356196,4.39295,1821.1,1820.5,9.55755045]
[1743643356413,4.39295,1821.1,1820.7,0.785]
[1743643356614,4.39295,1821.1,1820.8,5.793]
[1743643356907,4.3933,1821.0,1820.8,5.793]
[1743643357733,8.7867,1821.0,1820.8,5.793]
[1743643358208,8.84149275,1821.0,1820.8,5.793]
[1743643358710,4.3933,1821.0,1820.8,5.793]
[1743643359523,4.39343,1820.9,1820.8,5.793]
[1743643360038,4.3933,1821.0,1820.8,5.793]
[1743643360213,4.3933,1821.0,1820.8,6.4508]
[1743643361208,5.17873,1821.4,1820.8,6.50571868]
[1743643361439,4.44738275,1821.3,1820.9,0.7644]
[1743643361740,4.39259,1821.3,1820.9,0.81931025]
[1743643362042,4.39259,1821.3,1820.9,0.7644]
[1743643362240,4.39259,1821.3,1820.9,1.98018826]
[1743643362438,8.78526,1821.3,1820.9,1.925278]
[1743643363138,4.39282,1821.2,1820.9,0.7644]
[1743643363347,8.78573,1821.2,1820.9,0.7644]
[1743643363532,8.78612,1821.1,1820.8,6.4508]
[1743643364760,4.39326,1821.0,1820.8,5.793]
[1743643365266,4.39288,1821.2,1820.8,5.84791887]
[1743643365576,4.39288,1821.2,1820.8,5.793]
[1743643366133,4.39288,1821.2,1820.9,0.05491343]
[1743643366345,4.39247,1821.3,1820.9,0.05491343]
[1743643366677,7.39227,1821.4,1821.0,0.7564]
[1743643367062,7.39227,1821.4,1821.0,5.2044467]
[1743643367259,7.39227,1821.4,1821.0,5.14954]
[1743643367578,7.39227,1821.4,1821.1,0.05490451]
[1743643367799,1.18615037,1822.0,1821.3,0.7564]
[1743643367964,0.15479275,1821.9,1821.4,0.3070132]
[1743643368298,3.0,1821.7,1821.4,0.25211767]
[1743643369091,3.0,1821.7,1821.4,0.30701105]
[1743643369249,0.1,1821.9,1821.5,4.39197]
[1743643369452,0.1,1821.9,1821.6,6.6101895]
[1743643369748,0.1,1821.9,1821.6,12.04724595]
[1743643369953,0.1,1821.9,1821.7,0.2440409]
[1743643370394,0.1,1821.9,1821.7,4.6355009]
[1743643370750,0.1,1821.9,1821.7,0.2440409]
[1743643371395,0.1,1821.9,1821.7,0.2989252]
[1743643371589,0.1,1821.9,1821.8,0.05488418]
[1743643371796,0.1,1821.9,1821.8,0.24330218]
[1743643372856,4.49102,1821.9,1821.8,0.24330218]
[1743643373179,4.49102,1821.9,1821.8,5.93930218]
[1743643373383,4.54581275,1821.9,1821.8,5.93930218]
[1743643373583,4.49102,1821.9,1821.8,5.93930218]
[1743643374257,0.1,1821.9,1821.8,5.93930218]
[1743643374581,0.1,1821.9,1821.8,7.04956344]
[1743643375594,0.1,1821.9,1821.8,5.93930218]
[1743643377107,4.49102,1821.9,1821.8,5.93930218]
[1743643380007,0.1,1821.9,1821.8,5.93930218]
[1743643381724,0.1,1821.9,1821.8,11.09186218]
[1743643382780,0.1,1821.9,1821.8,16.25517263]
[1743643382980,0.1,1821.9,1821.8,18.31983689]
[1743643383921,0.1,1821.9,1821.8,18.73838544]
[1743643384121,0.1,1821.9,1821.8,21.90985709]
[1743643385021,3.0,1822.8,1822.5,4.38947]
[1743643385230,3.0,1822.8,1822.6,6.4675]
[1743643385523,3.0,1822.8,1822.7,0.64675]
[1743643385879,3.0,1822.8,1822.7,0.88410636]
[1743643386118,4.38885,1822.8,1822.7,0.88410636]
[1743643386315,3.0,1822.8,1822.7,0.88410636]
[1743643386624,4.48878,1822.9,1822.7,0.88410636]
[1743643386785,3.1,1822.9,1822.7,0.88410636]
[1743643386987,0.1,1822.9,1822.7,0.88410636]
[1743643391058,4.38885,1822.8,1822.7,0.88410636]
[1743643391657,8.87751,1822.9,1822.7,0.88410636]
[1743643391858,4.38885,1822.8,1822.7,0.88410636]
[1743643392245,4.48869,1822.9,1822.7,0.88410636]
[1743643392446,0.1,1822.9,1822.7,0.88410636]
[1743643393974,0.1,1822.9,1822.8,0.05485507]
[1743643394162,0.1,1822.9,1822.8,0.29494809]
[1743643396761,4.48861,1822.9,1822.8,0.24009302]
[1743643397358,0.1,1822.9,1822.8,0.24009302]
[1743643398462,0.1,1822.9,1822.8,0.29494812]
[1743643398623,0.1,1822.9,1822.8,10.28017638]
[1743643398828,0.1,1822.9,1822.8,11.03857638]
[1743643399156,0.1,1822.9,1822.8,10.98372128]
[1743643400264,0.1,1822.9,1822.8,11.15511385]
[1743643401366,0.1,1822.9,1822.8,16.84511385]
[1743643411795,0.1,1822.9,1822.8,17.25353091]
[1743643412183,1.4085,1823.9,1823.5,4.38703]
[1743643412491,1.4085,1823.9,1823.6,10.79360938]
[1743643412791,3.65,1823.9,1823.6,10.79360938]
[1743643412988,3.1,1823.9,1823.6,10.79360938]
[1743643413181,3.1,1823.9,1823.6,10.73877936]
[1743643413496,0.1,1823.9,1823.7,9.34980045]
[1743643413718,0.1,1823.9,1823.8,6.15242005]
[1743643414009,0.1,1823.9,1823.8,11.34222809]
[1743643415605,5.29131,1824.9,1824.4,4.38476]
[1743643415767,5.29121,1824.9,1824.5,10.2953676]
[1743643416101,3.0,1824.8,1824.6,0.0548001]
[1743643416394,4.38407,1824.8,1824.7,0.22107001]
[1743643416589,5.29121,1824.9,1824.6,0.05480034]
[1743643416796,5.29121,1824.9,1824.7,0.22107001]
[1743643416973,5.29121,1824.9,1824.6,0.05480034]
[1743643417174,5.29121,1824.9,1824.7,0.22085271]
[1743643417374,9.67524,1824.9,1824.6,0.05480034]
[1743643417578,4.38404,1824.8,1824.7,0.22085271]
[1743643417787,4.38404,1824.8,1824.6,0.05480034]
[1743643418096,4.38404,1824.8,1824.7,0.22085271]
[1743643418490,4.38404,1824.8,1824.6,0.05480034]
[1743643418702,4.38404,1824.8,1824.7,0.22085271]
[1743643419012,4.38404,1824.8,1824.6,0.05480034]
[1743643419204,4.38405,1824.8,1824.7,0.22085271]
[1743643419500,4.38405,1824.8,1824.5,5.687]
[1743643419677,4.38405,1824.8,1824.7,0.22085271]
[1743643419864,4.38405,1824.8,1824.6,0.22124962]
[1743643420197,4.38405,1824.8,1824.7,0.22085271]
[1743643420364,4.38405,1824.8,1824.5,5.687]
[1743643420565,4.38405,1824.8,1824.6,0.22124962]
[1743643421186,7.38428,1824.7,1824.6,0.22124962]
[1743643421391,8.24947275,1824.7,1824.6,5.685]
[1743643421578,8.24947275,1824.7,1824.6,5.90087419]
[1743643423311,8.19468,1824.7,1824.6,5.90087419]
[1743643424098,3.0,1824.7,1824.6,6.49096161]
[1743643424299,3.0,1824.7,1824.6,5.90087419]
[1743643424506,7.38428,1824.7,1824.6,5.90087419]
[1743643425668,3.0,1824.7,1824.6,5.90087419]
[1743643428219,7.38428,1824.7,1824.6,5.90087419]
[1743643428501,4.38428,1824.7,1824.6,5.90087419]
[1743643430181,12.70237994,1824.7,1824.6,0.21587419]
[1743643430388,5.21151,1824.3,1824.1,4.96331045]
[1743643430578,5.21151,1824.3,1824.2,5.88370609]
[1743643430777,5.21151,1824.3,1824.2,0.20070609]
[1743643431003,8.21151,1824.3,1823.9,4.96331045]
[1743643431203,8.21151,1824.3,1824.2,5.683]
[1743643431417,8.21151,1824.3,1824.2,5.88370609]
[1743643431713,8.77017,1824.4,1824.2,5.88370609]
[1743643432286,4.38501,1824.4,1824.2,5.88370609]
[1743643432508,7.38469,1824.6,1824.2,5.88370609]
[1743643432509,4.38469,1824.6,1824.2,5.88370609]
[1743643432688,3.0,1824.6,1824.3,0.58837061]
[1743643433087,3.0,1824.6,1824.4,0.19837847]
[1743643433298,7.38466,1824.6,1824.4,0.19837847]
[1743643433607,7.38466,1824.6,1824.2,4.96331045]
[1743643433608,4.385,1824.4,1824.2,4.96331045]
[1743643433790,4.385,1824.4,1824.3,5.683]
[1743643436078,4.38548,1824.2,1824.1,4.96331045]
[1743643436308,4.38581,1824.1,1823.8,5.8982905]
[1743643436517,4.38601,1824.0,1823.9,6.27182905]
[1743643436699,4.38632,1823.9,1823.6,4.96331045]
[1743643436900,4.38632,1823.9,1823.7,5.682]
[1743643437430,4.38644,1823.8,1823.7,5.682]
[1743643437808,4.38644,1823.8,1823.5,41.9243]
[1743643438010,4.38624,1823.9,1823.7,5.682]
[1743643438309,4.38644,1823.8,1823.7,6.25568285]
[1743643438815,4.38624,1823.9,1823.7,6.25568285]
[1743643440400,4.38644,1823.8,1823.7,6.25568285]
[1743643440721,8.77263,1823.9,1823.7,6.25568285]
[1743643442817,8.77263,1823.9,1823.8,0.20508595]
[1743643443329,8.77263,1823.9,1823.8,5.88708595]
[1743643443906,16.29543646,1823.9,1823.8,0.20508595]
[1743643444102,17.06123646,1823.9,1823.8,5.95e-06]
[1743643444426,4.38668,1823.7,1823.6,0.17132993]
[1743643444632,11.82364694,1823.7,1823.6,0.17132993]
[1743643444926,13.38986988,1823.7,1823.6,0.17132993]
[1743643445536,4.38764,1823.3,1823.2,5.682]
[1743643445905,4.38764,1823.3,1823.2,5.85836413]
[1743643446639,4.38741,1823.4,1823.2,5.85836413]
[1743643446937,11.76680694,1823.3,1823.2,0.17636413]
[1743643447135,11.71201419,1823.3,1823.2,0.17636413]
[1743643447333,4.38837,1823.0,1822.9,5.85432993]
[1743643447631,4.38837,1823.0,1822.9,6.01982771]
[1743643447833,4.44316275,1823.0,1822.9,6.01982771]
[1743643448039,5.25746275,1823.0,1822.9,6.01982771]
[1743643448936,5.25746275,1823.0,1822.9,5.84849778]
[1743643450239,8.25746275,1823.0,1822.9,0.16549778]
[1743643450439,8.25746275,1823.0,1822.4,0.17132993]
[1743643450440,4.38957,1822.5,1822.4,0.17132993]
[1743643450741,4.38981,1822.4,1822.3,0.17132993]
[1743643451041,7.38981,1822.4,1822.3,5.85432993]
[1743643451410,7.44460275,1822.4,1822.3,5.85432993]
[1743643451612,7.44460275,1822.4,1822.3,5.683]
[1743643451811,7.44460275,1822.4,1822.3,5.85376211]
[1743643452113,7.44460275,1822.4,1822.3,0.17076211]
[1743643452114,8.62802003,1822.4,1822.3,0.17076211]
[1743643452320,9.38342003,1822.4,1822.3,0.17076211]
[1743643452629,9.38342003,1822.4,1822.2,5.684]
[1743643452630,7.39005,1822.3,1822.2,5.684]
[1743643453240,3.0,1822.3,1822.2,5.684]
[1743643453448,7.39005,1822.3,1822.2,5.684]
[1743643454106,4.39005,1822.3,1822.2,5.684]
[1743643454307,0.7683,1822.9,1822.5,4.38941]
[1743643454637,4.38813,1823.1,1822.6,6.55855787]
[1743643454828,0.82309275,1823.2,1822.7,4.38907]
[1743643454829,4.38789,1823.2,1822.7,4.38907]
[1743643455140,9.60041275,1823.4,1822.9,0.8079]
[1743643455339,9.60041275,1823.4,1823.0,5.685]
[1743643455340,3.0,1823.2,1823.0,5.685]
[1743643455637,5.158,1823.4,1823.0,5.685]
[1743643455842,5.158,1823.4,1823.0,7.26947704]
[1743643456010,7.38774,1823.3,1823.0,7.26947704]
[1743643456333,4.38789,1823.2,1823.0,7.26947704]
[1743643456512,4.38789,1823.2,1823.0,5.685]
[1743643457326,4.38774,1823.3,1823.0,5.685]
[1743643457843,4.38774,1823.3,1823.1,0.16335491]
[1743643458737,3.0,1823.3,1823.1,0.16335491]
[1743643459250,7.38766,1823.3,1823.1,0.16335491]
[1743643459744,3.0,1823.3,1823.1,0.16335491]
[1743643460139,0.7704,1823.4,1823.1,0.16335491]
[1743643460357,3.0,1823.3,1823.1,0.16335491]
[1743643460509,3.7937,1823.6,1823.2,4.38771]
[1743643460709,3.0,1823.6,1823.2,0.8313]
[1743643460921,3.0,1823.6,1823.3,4.55065932]
[1743643461112,3.0,1823.6,1823.4,5.684]
[1743643461542,3.0,1823.6,1823.5,0.16282005]
[1743643461943,5.18015,1823.8,1823.5,0.16282005]
[1743643462147,3.0,1823.8,1823.5,4.54991005]
[1743643462315,0.05479275,1823.9,1823.5,0.16282005]
[1743643462514,3.0,1823.6,1823.5,0.16282005]
[1743643465148,7.44171275,1823.6,1823.5,0.16282005]
[1743643465348,7.38692,1823.6,1823.5,5.84682005]
[1743643465566,3.0,1823.6,1823.5,5.684]
[1743643465777,7.38654,1823.8,1823.5,5.84635387]
[1743643466069,3.0,1823.6,1823.5,5.84635387]
[1743643466571,7.38692,1823.6,1823.5,5.84635387]
[1743643467567,3.0,1823.6,1823.5,5.84635387]
[1743643468463,11.77302,1823.8,1823.5,5.84635387]
[1743643468635,3.0,1823.6,1823.5,5.84635387]
[1743643469761,7.38645,1823.8,1823.5,5.84635387]
[1743643470563,11.77309,1823.8,1823.5,5.84635387]
[1743643470866,3.0,1823.6,1823.5,5.84635387]
[1743643474733,5.20553,1824.2,1823.7,4.3865]
[1743643475058,4.67067173,1824.3,1823.9,0.7745]
[1743643475254,4.38552,1824.2,1824.0,5.89635082]
[1743643475475,4.38552,1824.2,1824.0,5.84153194]
[1743643475683,3.0,1824.2,1824.0,5.84153194]
[1743643476172,8.82547275,1824.3,1824.0,5.84153194]
[1743643476372,7.38549,1824.2,1824.0,5.84153194]
[1743643476786,3.0,1824.2,1824.0,5.84153194]
[1743643479365,7.38552,1824.2,1824.0,5.84153194]
[1743643479564,8.15462,1824.1,1824.0,0.15953194]
[1743643479744,8.893172,1824.1,1824.0,0.15953194]
[1743643479944,8.94796475,1824.1,1824.0,0.15953194]
[1743643480253,7.38596,1824.0,1823.9,5.681]
[1743643480664,7.44075275,1824.0,1823.9,5.681]
[1743643481178,7.38596,1824.0,1823.9,5.681]
[1743643484805,4.38537,1824.3,1823.9,6.2491]
[1743643485021,4.38537,1824.3,1824.0,0.05481884]
[1743643485322,3.0,1824.2,1823.9,11.43987]
[1743643485487,3.0,1824.2,1824.0,0.05481882]
[1743643485820,3.0,1824.2,1823.9,11.43987]
[1743643485976,7.38551,1824.2,1823.9,5.681]
[1743643486407,7.38551,1824.2,1824.0,0.05481891]
[1743643486571,7.38551,1824.2,1823.9,5.681]
[1743643486767,7.38551,1824.2,1824.0,0.05481901]
[1743643487004,3.0,1824.2,1824.0,0.05481901]
[1743643487184,4.38527,1824.3,1823.9,10.06713]
[1743643487185,11.7707,1824.3,1823.9,10.06713]
[1743643487391,3.0,1824.1,1823.9,7.126345]
[1743643488092,3.0,1824.1,1824.0,0.15802155]
[1743643488474,7.38572,1824.1,1824.0,0.15802155]
[1743643490697,7.44051275,1824.1,1824.0,0.15802155]
[1743643490900,8.13642,1824.1,1824.0,5.679]
[1743643491211,3.0,1824.1,1824.0,5.83611496]
[1743643491708,7.38572,1824.1,1824.0,5.83611496]
[1743643492205,8.97336314,1824.1,1824.0,5.83611496]
[1743643492894,7.38572,1824.1,1824.0,5.83611496]
[1743643495610,7.44051275,1824.1,1824.0,5.83611496]
[1743643495830,4.38501,1824.4,1824.0,5.83611496]
[1743643496117,4.38543,1824.3,1824.0,5.83611496]
[1743643496276,3.0,1824.1,1824.0,5.83611496]
[1743643496908,3.0,1824.1,1824.0,6.00743695]
[1743643498199,7.38572,1824.1,1824.0,6.00743695]
[1743643498911,3.0,1824.2,1824.0,6.00743695]
[1743643499114,7.38524,1824.3,1824.0,7.13067669]
[1743643499504,7.38524,1824.3,1824.0,6.00743695]
[1743643499934,3.0,1824.3,1824.1,0.05481549]
[1743643500437,7.38525,1824.3,1824.2,0.15522511]
[1743643500613,7.38525,1824.3,1824.0,5.679]
[1743643500813,7.38525,1824.3,1824.1,0.1556223]
[1743643501401,7.38525,1824.3,1824.1,0.32692398]
[1743643502531,4.38548,1824.2,1824.1,0.32692398]
[1743643504428,4.44027275,1824.2,1824.1,0.32692398]
[1743643504726,6.39112503,1824.2,1824.1,6.00392398]
[1743643504929,5.62282503,1824.2,1824.1,5.8326223]
[1743643505100,4.38548,1824.2,1824.1,5.8326223]
[1743643505533,7.38525,1824.3,1824.1,5.8326223]
[1743643505830,11.77069,1824.3,1824.1,5.8326223]
[1743643506035,11.77069,1824.3,1824.1,6.00392398]
[1743643506737,4.38548,1824.2,1824.1,6.00392398]
[1743643507109,4.38548,1824.2,1824.1,0.32692398]
[1743643507309,5.61734575,1824.2,1824.1,5.8316223]
[1743643507620,5.562553,1824.2,1824.1,5.8316223]
[1743643507823,8.61734575,1824.2,1824.1,0.1556223]
[1743643508031,9.37084575,1824.2,1824.1,0.1556223]
[1743643509042,4.38656,1823.8,1823.5,0.22613176]
[1743643509200,4.38656,1823.8,1823.6,5.676]
[1743643509407,0.05479275,1823.9,1823.6,5.676]
[1743643509606,4.3856,1824.2,1823.8,5.15072]
[1743643509907,3.0,1824.1,1823.8,0.7644]
[1743643510339,3.0,1824.1,1823.8,5.15075]
[1743643510510,3.0,1824.1,1823.9,0.05482208]
[1743643510711,8.20539275,1824.3,1824.0,5.676]
[1743643510939,7.44009275,1824.3,1824.0,5.676]
[1743643511244,3.0,1824.1,1824.0,5.676]
[1743643512164,3.0,1824.1,1824.0,5.84731444]
[1743643512517,0.774,1824.5,1824.2,4.38539]
[1743643512811,4.43946275,1824.6,1824.2,4.38539]
[1743643513053,7.3848,1824.5,1824.1,5.26192386]
[1743643513264,7.3848,1824.5,1824.1,9.64763386]
[1743643513444,7.3848,1824.5,1824.2,0.17131444]
[1743643513644,8.82455275,1824.5,1824.2,0.17131444]
[1743643513953,4.3848,1824.5,1824.2,0.17131444]
[1743643514118,4.3848,1824.5,1824.3,0.17131444]
[1743643514324,4.3848,1824.5,1824.4,5.676]
[1743643514543,4.38454,1824.6,1824.4,5.676]
[1743643516226,4.38447,1824.7,1824.4,6.2436]
[1743643516745,0.38527291,1824.9,1824.7,4.38428]
[1743643517044,0.38527291,1824.9,1824.5,0.88260592]
[1743643517045,8.04096389,1824.9,1824.8,5.675]
[1743643517246,11.04096389,1824.9,1824.8,5.675]
[1743643517438,3.1,1824.9,1824.8,5.675]
[1743643517615,3.15479275,1824.9,1824.8,5.675]
[1743643517817,7.4838,1824.9,1824.8,5.82691936]
[1743643518510,8.72534775,1824.9,1824.8,5.82691936]
[1743643519027,13.09231164,1824.9,1824.8,5.82691936]
[1743643519252,13.03751889,1824.9,1824.8,5.82691936]
[1743643519428,13.03751889,1824.9,1824.8,5.675]
[1743643519627,13.03751889,1824.9,1824.8,5.8246117]
[1743643522743,8.670555,1824.9,1824.8,5.8246117]
[1743643523311,8.72534775,1824.9,1824.8,5.8246117]
[1743643524557,12.28251164,1824.9,1824.8,0.1496117]
[1743643524756,16.56008278,1824.9,1824.8,0.1496117]
[1743643524942,5.1602,1824.4,1824.3,5.84427683]
[1743643525142,9.16949675,1824.4,1824.3,0.32443943]
[1743643525342,4.38572,1824.2,1824.0,5.673]
[1743643525547,8.82623275,1824.2,1824.1,0.15465333]
[1743643526621,4.44051275,1824.2,1824.1,0.15465333]
[1743643528054,7.44051275,1824.2,1824.1,0.15465333]
[1743643528251,4.38572,1824.1,1824.0,5.672]
[1743643528429,4.38572,1824.1,1824.0,5.82667575]
[1743643528630,4.38572,1824.1,1824.0,0.15467575]
[1743643528631,4.44051275,1824.1,1824.0,0.15467575]
[1743643530751,10.99767664,1824.1,1824.0,0.15467575]
[1743643530931,4.38692,1823.6,1823.5,0.17127683]
[1743643531126,7.44171275,1823.6,1823.5,5.98830912]
[1743643532336,3.0,1823.6,1823.5,5.98830912]
[1743643532523,0.05479275,1823.8,1823.5,10.37546912]
[1743643532724,3.0,1823.8,1823.5,10.25902753]
[1743643532942,3.0,1823.8,1823.6,1.02590275]
[1743643533141,4.44157275,1823.7,1823.5,5.672]
[1743643533350,4.38692,1823.6,1823.5,5.672]
[1743643533651,4.44157275,1823.7,1823.5,5.672]
[1743643534924,4.38702,1823.6,1823.5,5.673]
[1743643537125,5.62559366,1823.6,1823.5,5.673]
[1743643537426,5.68038641,1823.6,1823.5,5.673]
[1743643537938,4.38764,1823.4,1823.1,41.106]
[1743643538267,0.05479275,1823.3,1823.2,5.673]
[1743643538557,4.38717,1823.5,1823.2,6.54094473]
[1743643538728,4.38717,1823.5,1823.2,6.54094245]
[1743643539125,3.0,1823.7,1823.3,4.3876]
[1743643539361,3.0,1823.7,1823.5,5.16483]
[1743643539558,3.0,1823.7,1823.6,5.673]
[1743643540128,7.73604275,1823.9,1823.6,5.673]
[1743643540456,7.38668,1823.7,1823.6,5.673]
[1743643540659,3.0,1823.6,1823.3,0.8239]
[1743643540826,7.44214275,1823.5,1823.4,5.672]
[1743643541158,7.38735,1823.5,1823.4,5.672]
[1743643541464,7.44214275,1823.5,1823.4,5.672]
[1743643541962,6.61195664,1823.5,1823.4,5.672]
[1743643542150,7.2731523,1823.5,1823.4,5.672]
[1743643542456,11.6603123,1823.5,1823.4,5.672]
[1743643542662,11.60551955,1823.5,1823.4,5.672]
[1743643543169,11.60551955,1823.5,1823.4,5.82262996]
[1743643543463,11.60551955,1823.5,1823.4,0.15062996]
[1743643543464,12.41051955,1823.5,1823.4,0.15062996]
[1743643543830,7.38764,1823.3,1823.2,5.672]
[1743643544031,4.38821,1823.1,1822.9,0.7848]
[1743643544232,4.38837,1823.0,1822.7,0.7848]
[1743643544560,8.77697,1823.0,1822.7,0.7848]
[1743643544741,7.44340275,1822.9,1822.8,5.672]
[1743643544929,4.38885,1822.8,1822.5,0.7847]
[1743643545129,4.38885,1822.8,1822.6,5.672]
[1743643545130,4.44364275,1822.8,1822.6,5.672]
[1743643545530,4.38885,1822.8,1822.6,5.672]
[1743643545842,7.38861,1822.9,1822.6,5.672]
[1743643546042,8.77657,1823.1,1822.7,0.7741]
[1743643546348,8.83136275,1823.1,1822.7,0.7741]
[1743643546671,4.38841,1823.0,1822.7,0.7741]
[1743643547065,4.38888,1822.8,1822.6,5.672]
[1743643547860,4.44316275,1823.0,1822.6,10.11610429]
[1743643548074,4.38837,1823.0,1822.7,0.15576127]
[1743643548266,4.44293275,1823.1,1822.8,0.8237]
[1743643548468,7.44272275,1823.2,1822.8,5.21254]
[1743643548635,3.0,1823.2,1822.9,0.15505738]
[1743643548968,3.0,1823.2,1823.0,5.673]
[1743643549266,3.0,1823.2,1823.1,0.15398556]
[1743643550334,4.67236898,1823.7,1823.3,4.38761]
[1743643550564,0.28546898,1823.7,1823.4,5.82579227]
[1743643550861,0.28546898,1823.7,1823.5,0.7869]
[1743643551070,3.55716389,1823.9,1823.5,0.7869]
[1743643551071,0.05479275,1823.9,1823.5,5.17397]
[1743643551270,1.18492062,1824.1,1823.5,5.17397]
[1743643551271,0.05479275,1824.1,1823.9,4.38616]
[1743643551450,4.38572,1824.2,1824.0,5.673]
[1743643551646,4.44051275,1824.2,1824.0,5.82003178]
[1743643552036,3.0,1824.1,1824.0,5.82003178]
[1743643552275,4.44051275,1824.2,1824.0,5.82003178]
[1743643552770,3.0,1824.1,1824.0,5.82003178]
[1743643553657,4.44051275,1824.2,1824.0,5.82003178]
[1743643554464,3.0,1824.1,1824.0,5.82003178]
[1743643557885,7.38572,1824.1,1824.0,5.82003178]
[1743643558080,3.0,1824.1,1824.0,5.82003178]
[1743643560261,8.56831728,1824.1,1824.0,0.14703178]
[1743643560568,8.56831728,1824.1,1823.8,5.67]
[1743643560569,4.3862,1823.9,1823.8,5.67]
[1743643560770,3.0,1823.8,1823.5,4.38711]
[1743643561096,7.38572,1824.1,1823.8,0.8233]
[1743643561470,7.44051275,1824.1,1823.8,0.8233]
[1743643561664,11.82642275,1824.1,1823.8,0.8233]
[1743643561858,11.77163,1824.1,1823.8,0.8233]
[1743643562059,7.38572,1824.1,1823.8,0.8233]
[1743643562259,11.77163,1824.1,1823.8,0.8233]
[1743643562501,11.77164,1824.1,1823.8,0.8233]
[1743643562954,11.77164,1824.1,1823.9,0.12870332]
[1743643562955,7.38572,1824.1,1823.9,0.12870332]
[1743643563155,7.38572,1824.1,1824.0,5.67]
[1743643563381,7.38572,1824.1,1824.0,5.79830614]
[1743643566470,7.44051275,1824.1,1824.0,5.79830614]
[1743643567858,7.44051275,1824.1,1824.0,5.79630614]
[1743643568182,9.38381203,1824.1,1824.0,5.79630614]
[1743643568558,9.66901864,1824.1,1824.0,5.79630614]
[1743643569893,12.96401864,1824.1,1824.0,0.12830614]
[1743643570063,12.90922589,1824.1,1824.0,0.12830614]
[1743643570263,7.3862,1823.9,1823.8,5.668]
[1743643570463,7.44099275,1823.9,1823.8,5.668]
[1743643570660,7.44099275,1823.9,1823.8,5.79748395]
[1743643571184,7.44099275,1823.9,1823.8,0.12948395]
[1743643571391,7.44099275,1823.9,1823.8,5.668]
[1743643571593,7.44099275,1823.9,1823.8,5.79748395]
[1743643571791,7.72620965,1823.9,1823.8,5.79748395]
[1743643572864,9.293152,1823.9,1823.8,5.79748395]
[1743643577060,7.72620965,1823.9,1823.8,5.79748395]
[1743643577266,0.2852169,1823.9,1823.8,6.62108395]
[1743643577485,3.05479275,1824.0,1823.8,6.62108395]
[1743643577865,7.44081275,1824.0,1823.8,6.62108395]
[1743643578291,11.82700275,1824.0,1823.8,6.62108395]
[1743643578501,11.77221,1824.0,1823.8,6.62108395]
[1743643579697,4.44099275,1823.9,1823.8,5.79748395]
[1743643579996,12.18085792,1823.9,1823.8,0.12948395]
[1743643580176,12.12606517,1823.9,1823.8,5.666]
[1743643580376,7.38644,1823.8,1823.7,0.17135671]
[1743643580582,8.19213275,1823.8,1823.7,0.17135671]
[1743643581212,4.38692,1823.6,1823.5,5.666]
[1743643585106,4.3875,1823.4,1823.1,41.9577]
[1743643585312,4.44252275,1823.3,1823.2,5.666]
[1743643585786,4.38773,1823.3,1823.2,5.666]
[1743643585989,4.3875,1823.4,1823.2,10.3456]
[1743643586207,3.0,1823.7,1823.4,4.3873]
[1743643586500,3.0,1823.7,1823.4,4.44222794]
[1743643586707,3.0,1823.7,1823.5,0.7948]
[1743643586887,3.0,1823.7,1823.6,5.666]
[1743643588100,4.38626,1823.9,1823.6,5.666]
[1743643588308,4.44105275,1823.9,1823.6,5.666]
[1743643588687,4.38648,1823.8,1823.6,5.666]
[1743643589082,4.44127275,1823.8,1823.6,5.666]
[1743643589917,4.38648,1823.8,1823.6,5.666]
[1743643590129,4.44147275,1823.7,1823.6,5.666]
[1743643590303,8.32426803,1823.7,1823.6,5.665]
[1743643590715,8.32426803,1823.7,1823.1,41.13]
[1743643590716,4.38768,1823.3,1823.1,41.13]
[1743643590914,4.38768,1823.3,1823.2,5.665]
[1743643591098,4.38798,1823.2,1822.9,0.7655]
[1743643591298,4.44277275,1823.2,1823.0,5.665]
[1743643591616,4.44277275,1823.2,1823.1,5.665]
[1743643592009,4.38798,1823.2,1823.1,5.665]
[1743643592410,4.38798,1823.2,1823.0,0.17140921]
[1743643592612,4.38798,1823.2,1823.1,5.665]
[1743643593088,4.38798,1823.2,1823.1,5.80238086]
[1743643594238,7.38768,1823.3,1823.1,5.80238086]
[1743643594389,7.38697,1823.6,1823.2,5.18236]
[1743643594708,4.44197275,1823.5,1823.3,0.13796193]
[1743643595022,4.38718,1823.5,1823.3,0.13796193]
[1743643596043,4.44197275,1823.5,1823.3,0.13796193]
[1743643596616,4.38718,1823.5,1823.3,0.13796193]
[1743643596948,0.7994,1823.9,1823.3,0.19280545]
[1743643597119,7.3867,1823.7,1823.3,4.58039545]
[1743643597325,4.38698,1823.6,1823.4,0.45803955]
[1743643597533,4.44177275,1823.6,1823.5,5.665]
[1743643597738,4.44177275,1823.6,1823.5,5.8021667]
[1743643599738,11.79863664,1823.6,1823.5,5.8011667]
[1743643599914,11.74384389,1823.6,1823.5,5.8011667]
[1743643600117,13.35689828,1823.6,1823.5,5.8011667]
[1743643602530,11.74384389,1823.6,1823.5,5.8011667]
[1743643603852,7.38698,1823.6,1823.5,5.8011667]
[1743643604041,7.44177275,1823.6,1823.5,5.8011667]
[1743643608028,7.44177275,1823.6,1823.5,5.8001667]
[1743643610154,15.10233664,1823.6,1823.5,0.1371667]